fUSD/lending_fUSD_20240609
["ID","MTS","AMOUNT","RATE_DAILY","PERIOD"]
[328895936,1717968633279,-150.0,0.00016636,2]
[328895937,1717968633290,-269.07381072,0.00016641,2]
[328895938,1717968633302,-150.0,0.00016643,2]
[328895939,1717968633313,-150.0,0.00016643,2]
[328895940,1717968633322,-150.0,0.00016645,2]
[328895941,1717968633333,-1500.0,0.00016651,2]
[328895943,1717968633343,-150.0,0.00016655,2]
[328895944,1717968633352,-285.9507479,0.0001666,2]
[328895946,1717968633362,-1500.0,0.0001666,2]
[328895948,1717968633372,-150.0,0.00016661,2]
[328895949,1717968633382,-150.0,0.00016662,2]
[328895951,1717968633392,-150.0,0.00016666,2]
[328895953,1717968633402,-150.0,0.00016669,2]
[328895955,1717968633413,-150.0,0.00016672,2]
[328895956,1717968633423,-150.0,0.00016676,2]
[328895958,1717968633434,-151.12643296,0.00016678,2]
[328895960,1717968633444,-150.0,0.00016688,2]
[328895962,1717968633455,-150.0,0.0001669,2]
[328895964,1717968633466,-150.0,0.00016698,2]
[328895965,1717968633477,-150.0,0.00016699,2]
[328895967,1717968633488,-150.0,0.00016703,2]
[328895969,1717968633498,-150.0,0.00016704,2]
[328895971,1717968633509,-150.0,0.00016704,2]
[328895973,1717968633519,-1500.0,0.00016708,2]
[328895974,1717968633530,-150.0,0.00016718,2]
[328895976,1717968633541,-150.0,0.00016719,2]
[328895978,1717968633551,-150.0,0.0001672,2]
[328895980,1717968633561,-150.0,0.00016722,2]
[328895982,1717968633572,-150.0,0.00016725,2]
[328895983,1717968633584,-150.0,0.00016727,2]
[328895985,1717968633594,-150.0,0.0001673,2]
[328895987,1717968633605,-1500.0,0.00016733,2]
[328895989,1717968633615,-150.0,0.00016733,2]
[328895990,1717968633625,-150.0,0.00016746,2]
[328895992,1717968633635,-150.0,0.00016747,2]
[328895994,1717968633645,-150.0,0.00016749,2]
[328895996,1717968633656,-300.0,0.00016752,2]
[328895998,1717968633666,-150.0,0.00016755,2]
[328896000,1717968633676,-1500.0,0.00016758,2]
[328896010,1717968633780,-150.0,0.00016758,2]
[328896013,1717968633811,-150.0,0.0001676,2]
[328896014,1717968633821,-150.0,0.00016761,2]
[328896016,1717968633831,-150.0,0.00016762,2]
[328896018,1717968633841,-150.0,0.00016765,2]
[328896020,1717968633857,-150.0,0.00016766,2]
[328896022,1717968633867,-150.0,0.00016766,2]
[328896024,1717968633877,-150.0,0.00016768,2]
[328896026,1717968633888,-150.0,0.0001677,2]
[328896028,1717968633897,-1500.0,0.00016776,2]
[328896029,1717968633908,-150.0,0.0001678,2]
[328896031,1717968633918,-150.0,0.0001678,2]
[328896033,1717968633927,-150.0,0.00016785,2]
[328896034,1717968633937,-150.0,0.00016787,2]
[328896035,1717968633947,-150.0,0.00016787,2]
[328896036,1717968633957,-150.0,0.00016787,2]
[328896037,1717968633966,-150.0,0.00016789,2]
[328896038,1717968633976,-300.0,0.0001679,2]
[328896039,1717968633990,-150.0,0.00016792,2]
[328896040,1717968634001,-172.39,0.00016801,2]
[328896041,1717968634011,-1500.0,0.00016801,2]
[328896042,1717968634021,-150.0,0.00016803,2]
[328896043,1717968634031,-150.0,0.00016806,2]
[328896044,1717968634042,-150.0,0.00016806,2]
[328896045,1717968634052,-300.0,0.00016809,2]
[328896046,1717968634062,-300.0,0.00016813,2]
[328896047,1717968634072,-1500.0,0.00016815,2]
[328896048,1717968634082,-150.0,0.00016825,2]
[328896049,1717968634092,-150.0,0.00016827,2]
[328896050,1717968634102,-1000.0,0.0001688,2]
[328896051,1717968634111,-200.0,0.00016997,2]
[328896052,1717968634121,-2700.0,0.00017,2]
[328896053,1717968634131,-10865.55303656,0.00017,2]
[328896054,1717968634141,-200.0,0.00017,2]
[328896055,1717968634151,-408.41,0.00017249,2]
[328896056,1717968634160,-609.03,0.00017789,2]
[328896057,1717968634170,-1000.0,0.00017874,2]
[328896058,1717968634181,-2907.68,0.00017884,2]
[328896059,1717968634191,-408.41,0.00018033,2]
[328896060,1717968634204,-189.52,0.00018444,2]
[328896061,1717968634214,-172.39,0.00018583,2]
[328896062,1717968634224,-408.41,0.00018817,2]
[328896063,1717968634233,-200.0,0.00018886,2]
[328896064,1717968634242,-1000.0,0.00019499,2]
[328896065,1717968634251,-1114.69490557,0.0001971,2]
[328896066,1717968634261,-167.32,0.00019812,2]
[328896067,1717968634271,-167.19,0.00019966,2]
[328896068,1717968634281,-609.03,0.00020053,2]
[328896069,1717968634292,-226.67450997,0.000201,2]
[328896070,1717968634302,-172.39,0.00020366,2]
[328896071,1717968634312,-1338.30366751,0.00020623,2]
[328896072,1717968634326,-1569.37633249,0.00020623,2]
[328896073,1717968634338,-164.28935887,0.0002069,2]
[328896074,1717968634348,-200.0,0.00020775,2]
[328896075,1717968634358,-789.57,0.00021124,2]
[328896076,1717968634368,-1335.24345858,0.000212,3]
[328896077,1717968634411,-447.75654142,0.000212,3]
[328896078,1717968634422,-1913.382886,0.000214,2]
[328896079,1717968634433,-196.88387484,0.00021561,2]
[328896080,1717968634444,-485.95729774,0.00021562,2]
[328896081,1717968634501,-181.04270226,0.00021562,2]
[328896082,1717968634511,-504.10729774,0.00021759,2]
[328896083,1717968634878,-0.88490971,0.00021759,2]
[328896084,1717968634890,-450.0,0.00021759,2]
[328896085,1717968634933,-325.40703263,0.00021759,2]
[328896086,1717968634953,-1379.76668293,0.00021759,2]
[328896087,1717968634964,-234.08195287,0.00021779,2]
[328896088,1717968634974,-267.18972619,0.00021779,2]
[328896089,1717968634985,-791.5831627,0.00021779,2]
[328896090,1717968634995,-342.12611503,0.00021779,2]
[328896091,1717968635005,-6229.48739358,0.00021781,7]
[328896092,1717968635016,-9425.49160205,0.00021781,7]
[328896093,1717968635026,-626.38130133,0.00021781,2]
[328896094,1717968635037,-209.76972787,0.00021781,2]
[328896095,1717968635049,-214.99923857,0.00021781,2]
[328896096,1717968635060,-500.0,0.00021902,2]
[328896097,1717968635073,-500.0,0.00021902,2]
[328896098,1717968635084,-500.0,0.00021902,2]
[328896099,1717968635094,-176.68,0.00021918,2]
[328896100,1717968635105,-212.13,0.00021918,2]
[328896101,1717968635115,-250.0,0.00021918,2]
[328896102,1717968635125,-609.03,0.00022317,2]
[328896103,1717968635136,-541.0,0.000225,3]
[328896104,1717968635147,-173.08215392,0.00022579,2]
[328896105,1717968635157,-200.0,0.00022663,2]
[328896106,1717968635168,-1114.69490557,0.00022787,2]
[328896107,1717968635178,-400.0,0.00022998,2]
[328896108,1717968635188,-200.0,0.00022998,2]
[328896109,1717968635201,-500.0,0.00024,2]
[328896110,1717968635211,-173.0821539,0.00024234,2]
[328896111,1717968635221,-167.36,0.00024384,2]
[328896112,1717968635232,-177.18,0.00024384,2]
[328896113,1717968635242,-202.55,0.00024384,2]
[328896114,1717968635253,-164.9,0.00024384,2]
[328896115,1717968635264,-609.03,0.00024581,2]
[328896116,1717968635277,-960.45024793,0.00024799,2]
[328896117,1717968635288,-960.45024791,0.00024799,2]
[328896118,1717968635298,-960.45024791,0.00024799,2]
[328896119,1717968635309,-960.45024791,0.00024799,2]
[328896120,1717968635320,-960.45024791,0.00024799,2]
[328896121,1717968635332,-960.45024791,0.00024799,2]
[328896122,1717968635343,-960.45024791,0.00024799,2]
[328896123,1717968635353,-27251.29815035,0.00025,2]
[328896124,1717968635368,-422.57359696,0.00025,2]
[328896125,1717968635402,-791.24822385,0.00025,2]
[328896126,1717968635414,-2618.88002884,0.00025,2]
[328896127,1717968635425,-500.0,0.00025,2]
[328896128,1717968635436,-500.0,0.000255,2]
[328896129,1717968635447,-960.45024791,0.00025636,2]
[328896130,1717968635459,-1114.69490557,0.00025864,2]
[328896131,1717968635471,-173.0821539,0.0002589,2]
[328896132,1717968635483,-500.0,0.00026,2]
[328896133,1717968635492,-155.0,0.00026366,2]
[328896134,1717968635503,-155.69003604,0.00026368,2]
[328896135,1717968635514,-152.12181674,0.00026468,2]
[328896136,1717968635526,-500.0,0.000265,2]
[328896137,1717968635538,-609.03,0.00026845,2]
[328896138,1717968635548,-500.0,0.00027,2]
[328896139,1717968635559,-160.0,0.00027,2]
[328896140,1717968635571,-7539.9,0.00027136,2]
[328896141,1717968635582,-2010.60105363,0.000272,2]
[328896142,1717968635595,-4386.22581427,0.00027205,2]
[328896143,1717968635606,-1270.6,0.0002735,2]
[328896144,1717968635617,-4386.22581424,0.00027386,2]
[328896145,1717968635628,-152.04,0.00027397,2]
[328896146,1717968635640,-960.45024791,0.00027418,2]
[328896147,1717968635653,-500.0,0.000275,2]
[328896148,1717968635666,-152.12181674,0.00027506,2]
[328896149,1717968635676,-173.0821539,0.00027545,2]
[328896150,1717968635686,-4675.13,0.00027545,2]
[328896151,1717968635697,-4386.22581424,0.00027568,2]
[328896152,1717968635708,-999.0,0.00027671,7]
[328896153,1717968635719,-999.0,0.00027671,7]
[328896154,1717968635730,-999.0,0.00027671,7]
[328896155,1717968635741,-577.78659203,0.00027671,7]
[328896156,1717968635848,-4386.22581424,0.00027749,2]
[328896157,1717968635859,-4386.22581424,0.0002793,2]
[328896158,1717968635869,-1010.0,0.00028,8]
[328896159,1717968635879,-500.0,0.00028,2]
[328896160,1717968635890,-500.0,0.00028,2]
[328896161,1717968635900,-500.72,0.00028,2]
[328896162,1717968635910,-1000.0,0.000281,10]
[328896163,1717968635921,-4386.22581424,0.00028112,2]
[328896164,1717968635931,-2100.0,0.000282,10]
[328896165,1717968635941,-4386.22581424,0.00028293,2]
[328896166,1717968635951,-3200.0,0.000283,10]
[328896167,1717968635962,-152.04,0.0002831,2]
[328896168,1717968635972,-4300.0,0.000284,10]
[328896169,1717968635982,-156.53,0.00028465,2]
[328896170,1717968635991,-4386.22581424,0.00028475,2]
[328896171,1717968636002,-500.0,0.000285,2]
[328896172,1717968636012,-5400.0,0.000285,10]
[328896173,1717968636021,-1000.0,0.000286,10]
[328896174,1717968636031,-151.0,0.00028614,2]
[328896175,1717968636042,-4386.22581424,0.00028656,2]
[328896176,1717968636052,-152.12181674,0.0002868,2]
[328896177,1717968636062,-1000.0,0.000287,10]
[328896178,1717968636072,-150.0,0.00028746,2]
[328896179,1717968636082,-150.0,0.00028785,4]
[328896180,1717968636092,-1000.0,0.000288,10]
[328896181,1717968636103,-4386.22581424,0.00028837,2]
[328896182,1717968636113,-430.4114,0.00028896,2]
[328896183,1717968636123,-537.28157027,0.000289,2]
[328896184,1717968636133,-182.56985887,0.000289,2]
[328896185,1717968636142,-1000.0,0.000289,10]
[328896186,1717968636152,-995.5,0.000289,2]
[328896187,1717968636163,-1000.0,0.000289,2]
[328896188,1717968636174,-151.0,0.00028922,7]
[328896189,1717968636184,-526.78,0.00028932,2]
[328896190,1717968636197,-500.0,0.00028936,2]
[328896191,1717968636207,-200.0,0.00028936,2]
[328896192,1717968636217,-7500.0,0.00028939,2]
[328896193,1717968636226,-176.42441265,0.00028941,2]
[328896194,1717968636236,-174.72044621,0.00028941,2]
[328896195,1717968636246,-1114.69490557,0.00028941,2]
[328896196,1717968636256,-184.80957673,0.00028941,2]
[328896197,1717968636266,-294.53376318,0.00028941,2]
[328896198,1717968636276,-152.12181674,0.00028996,2]
[328896199,1717968636286,-150.0,0.00028999,2]
[328896200,1717968636296,-1000.0,0.00029,8]
[328896201,1717968636307,-156.39078588,0.00029,7]
[328896202,1717968636317,-5000.0,0.00029,7]
[328896203,1717968636328,-4678.81837934,0.00029,5]
[328896204,1717968636339,-484.0,0.00029,13]
[328896205,1717968636349,-345.0,0.00029,2]
[328896206,1717968636360,-500.0,0.00029,2]
[328896207,1717968636370,-150.0,0.00029,6]
[328896208,1717968636381,-4386.22581424,0.00029019,2]
[328896209,1717968636392,-26313.68451986,0.0002903,7]
[328896210,1717968636402,-152.03,0.00029031,2]
[328896211,1717968636412,-431.72811163,0.00029039,2]
[328896212,1717968636423,-373428.37498562,0.00029039,4]
[328896213,1717968636434,-150.0,0.0002904,2]
[328896214,1717968636444,-445.74804984,0.00029041,5]
[328896215,1717968636454,-206370.60772327,0.00029041,13]
[328896216,1717968636464,-413.7332465,0.00029041,4]
[328896217,1717968636474,-505.53346064,0.00029041,4]
[328896218,1717968636484,-500.0,0.00029041,4]
[328896219,1717968636495,-500.0,0.00029041,4]
[328896220,1717968636506,-500.0,0.00029041,4]
[328896221,1717968636516,-500.0,0.00029041,4]
[328896222,1717968636526,-500.0,0.00029041,4]
[328896223,1717968636536,-500.0,0.00029041,4]
[328896224,1717968636546,-500.0,0.00029041,4]
[328896225,1717968636556,-500.0,0.00029041,4]
[328896226,1717968636568,-500.0,0.00029041,4]
[328896227,1717968636578,-584.22534136,0.00029041,4]
[328896228,1717968636588,-500.0,0.00029041,4]
[328896229,1717968636599,-500.0,0.00029041,4]
[328896230,1717968636610,-500.0,0.00029041,4]
[328896231,1717968636621,-500.83356574,0.00029041,4]
[328896232,1717968636631,-500.0,0.00029041,4]
[328896233,1717968636642,-521.24529771,0.00029041,4]
[328896234,1717968636652,-501.76299064,0.00029041,4]
[328896235,1717968636663,-502.30665328,0.00029041,4]
[328896236,1717968636674,-153.12025998,0.00029041,4]
[328896237,1717968636684,-501.5004867,0.00029041,4]
[328896238,1717968636695,-511.50281836,0.00029041,4]
[328896239,1717968636706,-502.59619064,0.00029041,4]
[328896240,1717968636716,-500.90575513,0.00029041,4]
[328896241,1717968636727,-501.00532374,0.00029041,4]
[328896242,1717968636737,-501.67788809,0.00029041,4]
[328896243,1717968636747,-500.88872757,0.00029041,4]
[328896244,1717968636757,-500.0,0.00029041,4]
[328896245,1717968636768,-506.06895471,0.00029041,4]
[328896246,1717968636778,-500.0,0.00029041,4]
[328896247,1717968636788,-501.49272028,0.00029041,4]
[328896248,1717968636799,-501.0580869,0.00029041,4]
[328896249,1717968636809,-501.61131442,0.00029041,4]
[328896250,1717968636820,-501.78910557,0.00029041,4]
[328896251,1717968636830,-500.0,0.00029041,4]
[328896252,1717968636840,-500.0,0.00029041,4]
[328896253,1717968636851,-500.0,0.00029041,4]
[328896254,1717968636863,-500.0,0.00029041,4]
[328896255,1717968636875,-501.6682187,0.00029041,4]
[328896256,1717968636886,-500.84219759,0.00029041,4]
[328896257,1717968636897,-500.99583983,0.00029041,4]
[328896258,1717968636907,-500.75270354,0.00029041,4]
[328896259,1717968636918,-500.94784447,0.00029041,4]
[328896260,1717968636928,-506.12952899,0.00029041,4]
[328896261,1717968636939,-503.58473303,0.00029041,4]
[328896262,1717968636949,-501.5904941,0.00029041,4]
[328896263,1717968636960,-499.51757327,0.00029041,4]
[328896264,1717968636970,-200.99061107,0.00029041,4]
[328896265,1717968636981,-499.75725075,0.00029041,4]
[328896266,1717968636992,-500.9657751,0.00029041,4]
[328896267,1717968637004,-500.56950148,0.00029041,4]
[328896268,1717968637015,-500.0,0.00029041,4]
[328896269,1717968637026,-500.0,0.00029041,4]
[328896270,1717968637037,-500.0,0.00029041,4]
[328896271,1717968637048,-505.49441802,0.00029041,4]
[328896272,1717968637059,-500.0,0.00029041,4]
[328896273,1717968637070,-500.0,0.00029041,4]
[328896274,1717968637082,-500.91192491,0.00029041,4]
[328896275,1717968637093,-159.78544193,0.00029041,4]
[328896276,1717968637103,-183.35733115,0.00029041,4]
[328896277,1717968637114,-500.64485579,0.00029041,4]
[328896278,1717968637124,-500.71045502,0.00029041,4]
[328896279,1717968637135,-647.06015092,0.00029041,4]
[328896280,1717968637146,-291.32542202,0.00029041,4]
[328896281,1717968637156,-501.02155911,0.00029041,4]
[328896282,1717968637167,-500.0,0.00029041,4]
[328896283,1717968637178,-505.70194496,0.00029041,4]
[328896284,1717968637189,-195.24354536,0.00029041,4]
[328896285,1717968637203,-221.59382924,0.00029041,4]
[328896286,1717968637213,-500.0,0.00029041,4]
[328896287,1717968637224,-203.92633743,0.00029041,4]
[328896288,1717968637234,-292.83506627,0.00029041,4]
[328896289,1717968637245,-500.0,0.00029041,4]
[328896290,1717968637258,-504.91308106,0.00029041,4]
[328896291,1717968637268,-535.89504318,0.00029041,4]
[328896292,1717968637281,-511.72328498,0.00029041,4]
[328896293,1717968637291,-508.92923508,0.00029041,4]
[328896294,1717968637302,-500.0,0.00029041,4]
[328896295,1717968637312,-500.0,0.00029041,4]
[328896296,1717968637323,-500.0,0.00029041,4]
[328896297,1717968637334,-195.64569171,0.00029041,4]
[328896298,1717968637344,-500.0,0.00029041,4]
[328896299,1717968637355,-500.0,0.00029041,4]
[328896300,1717968637366,-500.0,0.00029041,4]
[328896301,1717968637376,-202.88877292,0.00029041,4]
[328896302,1717968637388,-748.22,0.00029041,4]
[328896303,1717968637399,-748.22,0.00029041,4]
[328896304,1717968637409,-748.22,0.00029041,4]
[328896305,1717968637420,-748.22,0.00029041,4]
[328896306,1717968637431,-748.22,0.00029041,4]
[328896307,1717968637441,-748.22,0.00029041,4]
[328896308,1717968637451,-748.22,0.00029041,4]
[328896309,1717968637461,-616.37911963,0.00029041,4]
[328896310,1717968637472,-748.22,0.00029041,4]
[328896311,1717968637482,-748.22,0.00029041,4]
[328896312,1717968637493,-748.22,0.00029041,4]
[328896313,1717968637503,-748.22,0.00029041,4]
[328896314,1717968637513,-748.22,0.00029041,4]
[328896315,1717968637524,-748.22,0.00029041,4]
[328896316,1717968637534,-748.22,0.00029041,4]
[328896317,1717968637544,-748.22,0.00029041,4]
[328896318,1717968637635,-748.22,0.00029041,4]
[328896319,1717968637656,-748.22,0.00029041,4]
[328896320,1717968637667,-748.22,0.00029041,4]
[328896321,1717968637678,-500.0,0.00029041,4]
[328896322,1717968637688,-509.33183938,0.00029041,4]
[328896323,1717968637699,-748.22,0.00029041,4]
[328896324,1717968637710,-500.0,0.00029041,4]
[328896325,1717968637721,-748.22,0.00029041,4]
[328896326,1717968637731,-515.50371872,0.00029041,4]
[328896327,1717968637742,-500.0,0.00029041,4]
[328896328,1717968637752,-748.22,0.00029041,4]
[328896329,1717968637763,-396.1482664,0.00029041,4]
[328896330,1717968637774,-748.22,0.00029041,4]
[328896331,1717968637785,-748.22,0.00029041,4]
[328896332,1717968637795,-748.24694701,0.00029041,4]
[328896333,1717968637805,-500.0,0.00029041,4]
[328896334,1717968637815,-500.0,0.00029041,4]
[328896335,1717968637826,-510.25337174,0.00029041,4]
[328896336,1717968637836,-347.46761931,0.00029041,2]
[328896337,1717968637846,-500.0,0.00029041,4]
[328896338,1717968637856,-500.0,0.00029041,4]
[328896339,1717968637866,-500.0,0.00029041,4]
[328896340,1717968637877,-558.11893431,0.00029041,4]
[328896341,1717968637887,-500.0,0.00029041,4]
[328896342,1717968637899,-500.0,0.00029041,4]
[328896343,1717968637910,-500.0,0.00029041,4]
[328896344,1717968637921,-500.0,0.00029041,4]
[328896345,1717968637931,-509.52976788,0.00029041,4]
[328896346,1717968637941,-500.0,0.00029041,4]
[328896347,1717968637952,-500.0,0.00029041,4]
[328896348,1717968637963,-500.0,0.00029041,4]
[328896349,1717968637973,-257.18797411,0.00029041,4]
[328896350,1717968637984,-384.32010034,0.00029041,4]
[328896351,1717968637994,-500.0,0.00029041,4]
[328896353,1717968638005,-151.0,0.00029041,7]
[328896354,1717968638015,-500.0,0.00029041,4]
[328896355,1717968638025,-151.0,0.00029041,7]
[328896356,1717968638040,-500.0,0.00029041,4]
[328896357,1717968638050,-500.0,0.00029041,4]
[328896358,1717968638061,-505.05390554,0.00029041,4]
[328896359,1717968638072,-151.0,0.00029041,7]
[328896360,1717968638082,-500.0,0.00029041,4]
[328896361,1717968638095,-151.0,0.00029041,7]
[328896362,1717968638106,-500.0,0.00029041,4]
[328896363,1717968638117,-545.51330858,0.00029041,4]
[328896364,1717968638128,-517.94920295,0.00029041,4]
[328896365,1717968638139,-246.280408,0.00029041,7]
[328896366,1717968638149,-500.0,0.00029041,4]
[328896367,1717968638159,-508.77236837,0.00029041,4]
[328896368,1717968638170,-500.0,0.00029041,4]
[328896369,1717968638181,-500.0,0.00029041,4]
[328896370,1717968638194,-151.0,0.00029041,7]
[328896371,1717968638206,-500.0,0.00029041,4]
[328896372,1717968638217,-500.0,0.00029041,4]
[328896373,1717968638228,-500.0,0.00029041,4]
[328896374,1717968638239,-151.0,0.00029041,7]
[328896375,1717968638251,-500.0,0.00029041,4]
[328896376,1717968638263,-455.27993192,0.00029041,4]
[328896377,1717968638274,-500.0,0.00029041,4]
[328896378,1717968638285,-500.0,0.00029041,4]
[328896379,1717968638296,-504.67909445,0.00029041,4]
[328896380,1717968638307,-500.0,0.00029041,4]
[328896381,1717968638318,-500.0,0.00029041,4]
[328896382,1717968638329,-500.0,0.00029041,4]
[328896383,1717968638341,-500.0,0.00029041,4]
[328896384,1717968638353,-500.0,0.00029041,4]
[328896385,1717968638365,-500.0,0.00029041,4]
[328896386,1717968638376,-553.51293436,0.00029041,4]
[328896387,1717968638387,-163.4307563,0.00029041,4]
[328896388,1717968638397,-500.0,0.00029041,4]
[328896389,1717968638408,-500.0,0.00029041,4]
[328896390,1717968638419,-500.0,0.00029041,4]
[328896391,1717968638429,-500.0,0.00029041,4]
[328896392,1717968638440,-500.0,0.00029041,4]
[328896393,1717968638452,-500.0,0.00029041,4]
[328896394,1717968638462,-500.0,0.00029041,4]
[328896395,1717968638473,-500.0,0.00029041,4]
[328896396,1717968638484,-513.8506349,0.00029041,4]
[328896397,1717968638495,-500.0,0.00029041,4]
[328896398,1717968638506,-607.32487988,0.00029041,4]
[328896399,1717968638517,-500.0,0.00029041,4]
[328896400,1717968638527,-500.0,0.00029041,4]
[328896401,1717968638539,-500.0,0.00029041,4]
[328896402,1717968638550,-528.0,0.00029041,4]
[328896403,1717968638561,-500.0,0.00029041,4]
[328896404,1717968638573,-500.0,0.00029041,4]
[328896405,1717968638584,-500.0,0.00029041,4]
[328896406,1717968638594,-500.0,0.00029041,4]
[328896407,1717968638606,-500.0,0.00029041,4]
[328896409,1717968638617,-500.0,0.00029041,4]
[328896410,1717968638627,-500.0,0.00029041,4]
[328896411,1717968638638,-500.0,0.00029041,4]
[328896412,1717968638649,-521.37789056,0.00029041,4]
[328896413,1717968638660,-500.0,0.00029041,4]
[328896414,1717968638671,-500.0,0.00029041,4]
[328896415,1717968638682,-500.0,0.00029041,4]
[328896416,1717968638692,-500.0,0.00029041,4]
[328896417,1717968638703,-500.0,0.00029041,4]
[328896418,1717968638714,-500.0,0.00029041,4]
[328896419,1717968638725,-500.0,0.00029041,4]
[328896420,1717968638736,-500.0,0.00029041,4]
[328896421,1717968638746,-500.0,0.00029041,4]
[328896422,1717968638757,-500.0,0.00029041,4]
[328896423,1717968638768,-198.8692345,0.00029041,4]
[328896424,1717968638779,-500.0,0.00029041,4]
[328896425,1717968638789,-516.15628318,0.00029041,4]
[328896426,1717968638800,-500.0,0.00029041,4]
[328896427,1717968638810,-500.0,0.00029041,4]
[328896428,1717968638821,-961.56,0.00029041,4]
[328896429,1717968638832,-513.68222399,0.00029041,4]
[328896430,1717968638843,-501.0584359,0.00029041,4]
[328896431,1717968638853,-961.56,0.00029041,4]
[328896432,1717968638864,-961.56,0.00029041,4]
[328896433,1717968638875,-961.56,0.00029041,4]
[328896434,1717968638885,-961.56,0.00029041,4]
[328896435,1717968638896,-500.0,0.00029041,4]
[328896436,1717968638907,-961.56,0.00029041,4]
[328896437,1717968638918,-500.0,0.00029041,4]
[328896438,1717968638929,-961.56,0.00029041,4]
[328896439,1717968638940,-500.0,0.00029041,4]
[328896440,1717968638951,-961.56,0.00029041,4]
[328896441,1717968638961,-500.0,0.00029041,4]
[328896442,1717968638972,-523.81569453,0.00029041,4]
[328896443,1717968638983,-961.56,0.00029041,4]
[328896444,1717968638994,-500.0,0.00029041,4]
[328896445,1717968639005,-961.56,0.00029041,4]
[328896446,1717968639016,-510.61747302,0.00029041,4]
[328896447,1717968639027,-961.56,0.00029041,4]
[328896448,1717968639039,-961.56,0.00029041,4]
[328896449,1717968639051,-961.56,0.00029041,4]
[328896450,1717968639062,-961.56,0.00029041,4]
[328896451,1717968639074,-961.56,0.00029041,4]
[328896452,1717968639085,-961.56,0.00029041,4]
[328896453,1717968639096,-500.0,0.00029041,4]
[328896454,1717968639108,-500.0,0.00029041,4]
[328896455,1717968639120,-961.56,0.00029041,4]
[328896456,1717968639132,-961.56,0.00029041,4]
[328896457,1717968639143,-197.80430992,0.00029041,4]
[328896458,1717968639155,-961.56,0.00029041,4]
[328896459,1717968639166,-500.0,0.00029041,4]
[328896460,1717968639178,-961.56,0.00029041,4]
[328896461,1717968639189,-500.0,0.00029041,4]
[328896462,1717968639205,-961.56,0.00029041,4]
[328896463,1717968639217,-500.0,0.00029041,4]
[328896464,1717968639228,-500.0,0.00029041,4]
[328896465,1717968639241,-961.56,0.00029041,4]
[328896466,1717968639253,-500.0,0.00029041,4]
[328896467,1717968639264,-500.0,0.00029041,4]
[328896468,1717968639276,-961.56,0.00029041,4]
[328896469,1717968639289,-500.0,0.00029041,4]
[328896470,1717968639300,-961.57058506,0.00029041,4]
[328896471,1717968639421,-500.0,0.00029041,4]
[328896472,1717968639432,-238.00341153,0.00029041,4]
[328896473,1717968639443,-500.0,0.00029041,4]
[328896474,1717968639459,-500.0,0.00029041,4]
[328896475,1717968639470,-500.0,0.00029041,4]
[328896476,1717968639482,-500.0,0.00029041,4]
[328896477,1717968639493,-547.96292202,0.00029041,4]
[328896478,1717968639503,-500.0,0.00029041,4]
[328896479,1717968639514,-493.22232253,0.00029041,4]
[328896480,1717968639525,-500.0,0.00029041,4]
[328896481,1717968639537,-519.11358069,0.00029041,4]
[328896482,1717968639547,-500.0,0.00029041,4]
[328896483,1717968639557,-500.0,0.00029041,4]